fUSD/lending_fUSD_20240129
["ID","MTS","AMOUNT","RATE_DAILY","PERIOD"]
[312965495,1706552805930,5256.95679434,0.00021622,2]
[312965496,1706552805953,5256.95679434,0.00021622,2]
[312965497,1706552805978,4680.44734159,0.00021622,2]
[312965498,1706552806003,4680.44734159,0.00021622,2]
[312965499,1706552806031,556.68797523,0.00021622,2]
[312965500,1706552809256,155.0,0.00021621,2]
[312965501,1706552825671,2000.0,0.00021612,2]
[312965502,1706552826436,600.0,0.000225,8]
[312965503,1706552828518,1300.0,0.000226,8]
[312965504,1706552830602,1900.0,0.000227,8]
[312965505,1706552832703,2600.0,0.000228,8]
[312965506,1706552834797,3300.0,0.000229,8]
[312965507,1706552839647,176.69,0.00020916,2]
[312965508,1706552840895,176.69,0.00021464,2]
[312965509,1706552845366,154.56,0.00021718,2]
[312965510,1706552873727,499.77,0.00021434,2]
[312965511,1706552875436,278.79,0.00021441,2]
[312965512,1706552882575,673.67,0.00021431,2]
[312965513,1706552901767,8.58936636,0.00021412,2]
[312965514,1706552901794,156.63063364,0.00021412,2]
[312965515,1706552914868,247.6095047,0.00021739,2]
[312965516,1706552917390,158.8089,0.00021664,2]
[312965517,1706552923985,855.78,0.00019518,2]
[312965518,1706552934874,247.46092107,0.00021693,2]
[312965519,1706552945260,-155.0,0.0002174,2]
[312965520,1706552945283,-413.06174512,0.00021741,2]
[312965521,1706552945305,-155.0,0.00021741,2]
[312965522,1706552945329,-380.5384412,0.00021764,2]
[312965523,1706552945352,-672.0,0.00021765,2]
[312965524,1706552945379,-855.78,0.00021781,2]
[312965525,1706552945402,-183.28,0.00021785,2]
[312965526,1706552945426,-154.56,0.00021805,2]
[312965527,1706552945448,-1178.10857982,0.00021846,2]
[312965528,1706552945472,-154.56,0.00021892,2]
[312965529,1706552945495,-163.79,0.0002191,2]
[312965530,1706552945518,-325.0,0.0002191,2]
[312965531,1706552945543,-328.0,0.00021911,2]
[312965532,1706552945577,-19981.32123386,0.00021914,2]
[312965533,1706552946524,183.11,0.00021408,2]
[312965544,1706553011889,250.0,0.00021531,2]
[312965545,1706553031465,150.0,0.00021499,2]
[312965550,1706553032384,-252.07183324,0.00021814,2]
[312965551,1706553032394,-252.0718331,0.00021871,2]
[312965552,1706553032403,-150.0,0.00021913,2]
[312965553,1706553032413,-1468.86045366,0.00021914,2]
[312965557,1706553032686,-4324.98764311,0.00021914,2]
[312965559,1706553032706,-1301.3000002,0.00021914,2]
[312965561,1706553032719,-61905.18066917,0.00021914,2]
[312965562,1706553032728,-171.7777838,0.00021914,2]
[312965564,1706553032738,-319.36834875,0.00021914,2]
[312965566,1706553032747,-169.3178098,0.00021914,2]
[312965567,1706553032757,-155.2752812,0.00021914,2]
[312965568,1706553032766,-1932.53736126,0.00021915,2]
[312965569,1706553032775,-1052.40104911,0.00021915,2]
[312965570,1706553032784,-150.99,0.00021916,2]
[312965571,1706553032794,-250.0,0.00021918,2]
[312965572,1706553032803,-6514.01,0.00021918,2]
[312965573,1706553032812,-8923.99,0.00021918,2]
[312965574,1706553032821,-252.0718331,0.00021928,2]
[312965575,1706553032830,-154.56,0.00021979,2]
[312965576,1706553032839,-252.0718331,0.00021985,2]
[312965577,1706553032849,-250.0,0.00022,2]
[312965578,1706553032858,-150.0,0.00022,2]
[312965579,1706553032867,-150.0,0.00022,2]
[312965580,1706553032876,-176.69,0.00022012,2]
[312965581,1706553032886,-252.0718331,0.00022043,2]
[312965582,1706553032894,-154.56,0.00022066,2]
[312965583,1706553032904,-252.0718331,0.000221,2]
[312965584,1706553032913,-154.56,0.00022153,2]
[312965585,1706553032922,-252.0718331,0.00022157,2]
[312965586,1706553032931,-252.0718331,0.00022214,2]
[312965587,1706553032940,-154.56,0.00022241,2]
[312965588,1706553032949,-252.0718331,0.00022271,2]
[312965589,1706553032960,-374.63847812,0.00022274,2]
[312965590,1706553032968,-154.56,0.00022328,2]
[312965591,1706553032977,-252.0718331,0.00022328,2]
[312965592,1706553032986,-252.0718331,0.00022386,2]
[312965593,1706553032996,-154.56,0.00022415,2]
[312965594,1706553033005,-252.0718331,0.00022443,2]
[312965595,1706553033014,-252.0718331,0.000225,2]
[312965596,1706553033023,-154.56,0.00022502,2]
[312965597,1706553033033,-278.79,0.00022513,2]
[312965598,1706553033042,-150.0,0.00022548,2]
[312965599,1706553033052,-176.69,0.0002256,2]
[312965600,1706553033061,-1014.57449669,0.00022578,5]
[312965601,1706553033070,-154.56,0.00022589,2]
[312965602,1706553033080,-154.56,0.00022676,2]
[312965603,1706553033089,-154.56,0.00022763,2]
[312965604,1706553033098,-155.80319927,0.00022766,2]
[312965605,1706553033108,-168.61937043,0.00022768,2]
[312965606,1706553033117,-183.11,0.00022778,2]
[312965607,1706553033126,-154.56,0.0002285,2]
[312965608,1706553033135,-463.33290932,0.00022898,2]
[312965609,1706553033145,-267.233,0.00022898,2]
[312965610,1706553033155,-167.61944862,0.000229,2]
[312965611,1706553033164,-153.91318947,0.000229,2]
[312965612,1706553033173,-184.71706284,0.000229,2]
[312965613,1706553033182,-3521.07010013,0.000229,2]
[312965614,1706553033192,-195.95252274,0.000229,2]
[312965615,1706553033207,-213.36543943,0.000229,2]
[312965616,1706553033216,-215.35384188,0.00022975,2]
[312965617,1706553033226,-243.20763244,0.00022988,2]
[312965618,1706553033235,-155.0,0.00022996,2]
[312965619,1706553033245,-155.0,0.00022996,2]
[312965620,1706553033254,-209.09661213,0.00022996,2]
[312965621,1706553033264,-879.81391242,0.00022997,2]
[312965622,1706553033273,-157.40915313,0.00022998,2]
[312965623,1706553033282,-5442.70539136,0.00022998,2]
[312965624,1706553033292,-261.88942884,0.00022998,2]
[312965625,1706553033301,-1068.83824203,0.00022998,2]
[312965626,1706553033310,-369.19666549,0.00022998,2]
[312965627,1706553033319,-27176.59113526,0.00022998,2]
[312965628,1706553033329,-564.88177695,0.00022998,2]
[312965629,1706553033339,-1850.5397768,0.00022998,2]
[312965630,1706553033348,-2144.43375818,0.00022998,2]
[312965631,1706553033357,-258.61319956,0.00022998,2]
[312965632,1706553033366,-158.30695886,0.00022998,2]
[312965633,1706553033375,-220.30306813,0.00022998,2]
[312965634,1706553033384,-1218.48457109,0.00022998,2]
[312965635,1706553033394,-3964.39161946,0.00022998,2]
[312965636,1706553033403,-155.0,0.00022998,2]
[312965637,1706553033412,-199.10401129,0.00022998,2]
[312965638,1706553033422,-155.49419983,0.00022998,2]
[312965639,1706553033432,-2167.52559884,0.00022998,2]
[312965640,1706553033441,-2780.01755274,0.00022998,2]
[312965641,1706553033453,-16772.65978305,0.00022998,2]
[312965642,1706553033462,-2985.70199729,0.00022998,2]
[312965643,1706553033471,-495526.09478901,0.00022998,2]
[312965644,1706553033480,-286.73899009,0.00022998,2]
[312965645,1706553033491,-866.66662799,0.00022998,2]
[312965646,1706553033500,-302.89880783,0.00022998,2]
[312965647,1706553033509,-399.63683463,0.00022998,2]
[312965648,1706553033519,-2967.75744964,0.00022998,2]
[312965649,1706553033528,-695.69995506,0.00022998,2]
[312965650,1706553033538,-231.34778786,0.00022998,2]
[312965651,1706553033547,-155.48736217,0.00022998,2]
[312965652,1706553033556,-155.69206296,0.00022998,2]
[312965653,1706553033566,-6388.87669322,0.00022998,2]
[312965654,1706553033575,-158.8409691,0.00022999,2]
[312965655,1706553033585,-204.25558067,0.00022999,2]
[312965656,1706553033596,-155.35719994,0.00022999,2]
[312965657,1706553033609,-1995.211889,0.00022999,2]
[312965658,1706553033618,-193.8500035,0.00022999,2]
[312965659,1706553033628,-263.21972991,0.00022999,2]
[312965660,1706553033639,-376.90845451,0.00022999,2]
[312965661,1706553033648,-349.72496928,0.00022999,2]
[312965662,1706553033657,-500.0,0.00022999,2]
[312965663,1706553033666,-238278.44794944,0.00023,2]
[312965664,1706553033954,-903602.27591335,0.00023,2]
[312965665,1706553033974,-2126.27022583,0.00023,2]
[312965672,1706553038328,-402.12299413,0.000229,2]
[312965673,1706553038438,-3100.0,0.000229,2]
[312965674,1706553038451,-643.99426969,0.000229,2]
[312965675,1706553038461,-932.11223344,0.00023,2]
[312965676,1706553038496,-451.57864314,0.00023,2]
[312965679,1706553041750,-501.41626129,0.00023,2]
[312965680,1706553041767,-835.95418073,0.00023,2]
[312965681,1706553041796,-23983.43653395,0.00023,2]
[312965682,1706553041812,-1640.72882731,0.00023,2]
[312965683,1706553041827,-316.87153115,0.00023,2]
[312965701,1706553043454,-537.04022441,0.00023,2]
[312965706,1706553043471,-4027.44648834,0.00023,2]
[312965718,1706553043620,-249372.95324468,0.00023,2]
[312965719,1706553043635,-835831.56881113,0.00023,2]
[312965720,1706553043676,-1223.34715648,0.00023,2]
[312965759,1706553046552,-377.31197626,0.00023,2]
[312965761,1706553046564,-13920.09141887,0.00023,2]
[312965764,1706553046575,-11199.0,0.00023,2]
[312965766,1706553046586,-1335.93644594,0.00023,2]
[312965769,1706553046609,-189276.91628343,0.00023,2]
[312965775,1706553046671,-77490.66986697,0.00023,2]
[312965776,1706553046682,-572.85,0.00023,2]
[312965777,1706553046693,-325.4120935,0.00023,2]
[312965815,1706553048098,-347.41192985,0.00023,2]
[312965817,1706553051188,200.0,0.000227,8]
[312965818,1706553052929,-2480.04239229,0.00022309,2]
[312965819,1706553053304,500.0,0.000228,8]
[312965820,1706553055435,700.0,0.000229,8]
[312965821,1706553057551,1000.0,0.000269,9]
[312965823,1706553229448,184.13413816,0.00020697,2]
[312965824,1706553234020,23900.0,0.00022487,2]
[312965825,1706553301456,171.17,0.00017523,2]
[312965826,1706553321341,282.37,0.00021903,2]
[312965827,1706553349849,168.04,0.000219,10]
[312965828,1706553350063,168.04,0.00022436,10]
[312965829,1706553350288,168.04,0.00022973,10]
[312965830,1706553350519,168.04,0.00023509,10]
[312965831,1706553350890,168.04,0.00024046,10]
[312965832,1706553359401,214.58,0.00022064,2]
[312965833,1706553359612,214.58,0.00022124,2]
[312965834,1706553359821,214.58,0.00022185,2]
[312965835,1706553360231,214.58,0.00022246,2]
[312965836,1706553360475,214.58,0.00022306,2]
[312965837,1706553360692,214.58,0.00022367,2]
[312965838,1706553360916,214.58,0.00022427,2]
[312965839,1706553361162,214.58,0.00022488,2]
[312965840,1706553381501,2000.0,0.00021887,2]
[312965842,1706553450316,183.11,0.00021889,2]
[312965843,1706553464080,874.74,0.00019971,2]
[312965844,1706553464313,874.74,0.00022235,2]
[312965845,1706553476941,250.0,0.00021889,2]
[312965846,1706553482699,176.69,0.00021899,2]
[312965847,1706553483966,176.69,0.00022447,2]
[312965848,1706553514692,537.6,0.00021889,2]
[312965849,1706553555477,200.0,0.00021893,2]
[312965850,1706553572577,200.0,0.00021893,2]
[312965851,1706553583224,155.0,0.00021889,2]
[312965852,1706553586404,155.0,0.00021889,2]
[312965853,1706553587268,235.37393543,0.00021889,2]
[312965854,1706553594036,155.0,0.00021889,2]
[312965855,1706553596418,156.99,0.00021895,2]
[312965856,1706553605211,155.0,0.00021893,2]
[312965857,1706553609266,235.37393543,0.00021893,2]
[312965858,1706553621401,4650.67649223,0.00021893,2]
[312965859,1706553623233,220.09282609,0.00021893,2]
[312965860,1706553635293,233.48281082,0.00021893,2]
[312965861,1706553643689,200.0,0.00021856,2]
[312965862,1706553664944,1025.19,0.00021856,2]
[312965864,1706553711403,551.65565275,0.00021856,2]
[312965865,1706553711589,4253.14559991,0.00021856,2]
[312965867,1706553727657,10068.346423,0.00022422,2]
[312965868,1706553729591,336.83,0.00021855,2]
[312965870,1706553744599,303.78,0.00021855,2]
[312965873,1706553757050,483.97784617,0.00022,2]
[312965874,1706553757996,19405.28,0.00021855,2]
[312965875,1706553768442,368.38730643,0.00021855,2]
[312965877,1706553780646,150.0,0.00022,2]
[312965879,1706553790803,151.46,0.00022064,2]
[312965880,1706553791094,151.46,0.00022136,2]
[312965881,1706553791738,151.46,0.00022208,2]
[312965882,1706553791793,151.46,0.0002228,2]
[312965883,1706553792001,151.46,0.00022351,2]
[312965884,1706553792396,151.46,0.00022423,2]
[312965885,1706553792658,151.46,0.00022495,2]
[312965888,1706553898982,874.71,0.00019932,2]
[312965889,1706553899220,874.71,0.00022196,2]
[312965890,1706553919278,150.0,0.00021999,2]
[312965891,1706553922259,150.0,0.00022,2]
[312965892,1706553925455,500.0,0.0002185,2]
[312965893,1706553937118,569.92,0.0002185,2]
[312965894,1706553947563,167.79,0.0002185,2]
[312965895,1706553982134,2000.0,0.00021853,2]
[312965896,1706553989827,200.0,0.00021855,2]
[312965897,1706554010783,250.0,0.0002185,2]
[312965898,1706554049479,300.0,0.000226,8]
[312965899,1706554051493,600.0,0.000227,8]
[312965900,1706554053616,1000.0,0.000228,8]
[312965901,1706554055733,1300.0,0.000229,8]
[312965902,1706554086345,1235.23,0.00021837,2]
[312965903,1706554092096,200.0,0.00021837,2]
[312965904,1706554113940,337.36,0.00021837,2]
[312965905,1706554116328,176.69,0.00021799,2]
[312965906,1706554117597,176.69,0.00022347,2]
[312965914,1706554156343,200.0,0.00021853,2]
[312965915,1706554197256,225.89,0.00021876,2]
[312965916,1706554206697,368.74,0.00021899,2]
[312965917,1706554209892,151.46,0.00022101,2]
[312965918,1706554210096,151.46,0.00022229,2]
[312965919,1706554210322,151.46,0.00022357,2]
[312965920,1706554210527,151.46,0.00022485,2]
[312965921,1706554225440,1000.0,0.00027,27]
[312965927,1706554231538,-970.29951784,0.00022505,2]
[312965928,1706554231548,-582.76048216,0.00022506,2]
[312965929,1706554231642,-94.58787834,0.00022506,2]
[312965930,1706554231651,-517.85038684,0.00022506,2]
[312965931,1706554231661,-231.06592319,0.00022507,2]
[312965932,1706554231670,-155.0,0.00022508,2]
[312965933,1706554231680,-155.0,0.00022509,2]
[312965934,1706554231689,-216.48921933,0.00022533,2]
[312965935,1706554231699,-216.48921933,0.00022533,2]
[312965936,1706554231708,-216.48921933,0.00022533,2]
[312965937,1706554231718,-300.0,0.00022603,2]
[312965938,1706554231727,-150.0,0.00022603,2]
[312965939,1706554231737,-15562.19796717,0.00022604,2]
[312965940,1706554231746,-151.46,0.00022613,2]
[312965941,1706554231755,-151.46,0.00022741,2]
[312965942,1706554231765,-222.75436481,0.00022767,4]
[312965943,1706554231774,-499.99,0.00022767,2]
[312965944,1706554231783,-150.99,0.00022767,2]
[312965945,1706554231793,-197.09362325,0.00022797,2]
[312965946,1706554231802,-2717.7911,0.00022798,2]
[312965947,1706554231811,-453.83845108,0.00022798,2]
[312965948,1706554231820,-64503.2425,0.00022799,2]
[312965949,1706554231830,-11417.33,0.00022799,2]
[312965950,1706554231838,-1578.72,0.00022799,2]
[312965951,1706554231847,-254.86712904,0.00022799,2]
[312965952,1706554231857,-151.46,0.00022869,2]
[312965953,1706554231866,-800.0,0.00022877,2]
[312965954,1706554231875,-194.4155184,0.00022888,2]
[312965956,1706554231884,-176.69,0.00022895,2]
[312965958,1706554231893,-2000.0,0.00022897,2]
[312965960,1706554231902,-1984.32612,0.00022897,2]
[312965962,1706554231911,-500.0,0.00022897,2]
[312965964,1706554231920,-500.0,0.00022897,2]
[312965966,1706554231929,-500.0,0.00022897,2]
[312965968,1706554231938,-500.0,0.00022897,2]
[312965970,1706554231948,-528.16328191,0.00022897,2]
[312965972,1706554231957,-500.0,0.00022897,2]
[312965974,1706554231965,-500.0,0.00022897,2]
[312965976,1706554231974,-500.0,0.00022897,2]
[312965978,1706554231985,-622570.98834718,0.00022898,2]
[312965980,1706554232000,-320154.50527946,0.00022898,2]
[312965982,1706554232011,-102028.07522297,0.00022898,2]
[312965984,1706554232020,-8559.5939,0.00022898,2]
[312965986,1706554232030,-1576.5948,0.00022899,2]
[312965988,1706554232039,-22387.1629,0.00022899,2]
[312965989,1706554232048,-5738.20682457,0.00022899,2]
[312965990,1706554232059,-10698.95237026,0.00022899,2]
[312965991,1706554232084,-16398.30073846,0.00022899,2]
[312965992,1706554232107,-368.17965669,0.00022899,2]
[312965993,1706554232118,-4144.20204583,0.00022899,2]
[312965994,1706554232129,-175103.52946419,0.00022899,2]
[312965995,1706554232138,-100000.0,0.00022899,2]
[312965996,1706554232147,-4743.9446,0.00022899,2]
[312965997,1706554232156,-27710.91662126,0.00022899,2]
[312965998,1706554232166,-177.17930462,0.000229,2]
[312965999,1706554232176,-154.23524806,0.000229,2]
[312966000,1706554232185,-189.10579447,0.000229,2]
[312966001,1706554232194,-201.5901036,0.000229,2]
[312966002,1706554232204,-2948.38471395,0.000229,2]
[312966003,1706554232213,-194.58103893,0.000229,2]
[312966004,1706554232222,-771.84923869,0.000229,2]
[312966005,1706554232232,-890.81232483,0.000229,2]
[312966006,1706554232243,-213.36543942,0.000229,2]
[312966007,1706554232252,-303.78,0.00022947,2]
[312966008,1706554232262,-210.46939004,0.00022953,6]
[312966009,1706554232271,-225.89,0.0002297,2]
[312966010,1706554232280,-204.27170755,0.00022997,2]
[312966011,1706554232290,-221.40319185,0.00022997,2]
[312966012,1706554232300,-521.65923347,0.00022997,2]
[312966013,1706554232311,-371.72065286,0.00022997,2]
[312966014,1706554232321,-250.66764355,0.00022997,2]
[312966015,1706554232331,-157.79760794,0.00022997,2]
[312966016,1706554232341,-348.06286348,0.00022997,2]
[312966017,1706554232352,-310.6035145,0.00022997,2]
[312966018,1706554232363,-1054.70151802,0.00022997,2]
[312966019,1706554232374,-155.26927508,0.00022997,2]
[312966020,1706554232385,-155.50216158,0.00022997,2]
[312966021,1706554232395,-414.1012816,0.00022997,2]
[312966022,1706554232405,-165.07307558,0.00022997,2]
[312966023,1706554232416,-170.85453974,0.00022997,2]
[312966024,1706554232425,-155.0,0.00022997,2]
[312966025,1706554232435,-155.0,0.00022997,2]
[312966026,1706554232445,-242.82595575,0.00022997,2]
[312966027,1706554232454,-499.2718631,0.00022997,2]
[312966028,1706554232464,-155.49191532,0.00022997,2]
[312966029,1706554232473,-167.96801762,0.00022997,2]
[312966030,1706554232483,-155.0,0.00022997,2]
[312966031,1706554232494,-155.40347606,0.00022997,2]
[312966032,1706554232503,-524.30007126,0.00022997,2]
[312966033,1706554232513,-1022.91848257,0.00022997,2]
[312966034,1706554232523,-314.71110376,0.00022997,2]
[312966035,1706554232532,-151.46,0.00022997,2]
[312966036,1706554232543,-2303.11339718,0.00022998,2]
[312966037,1706554232553,-582.84742818,0.00022998,2]
[312966038,1706554232562,-155.36341877,0.00022998,2]
[312966039,1706554232572,-2136.71947033,0.00022998,2]
[312966040,1706554232582,-155.68760222,0.00022998,2]
[312966041,1706554232593,-155.3245955,0.00022998,2]
[312966042,1706554232603,-155.23514208,0.00022998,2]
[312966043,1706554232612,-155.0,0.00022998,2]
[312966044,1706554232623,-566.66190132,0.00022998,2]
[312966045,1706554232632,-698.8735926,0.00022998,2]
[312966046,1706554232641,-292.8513192,0.00022998,2]
[312966047,1706554232651,-155.12126467,0.00022998,2]
[312966048,1706554232660,-155.0,0.00022998,2]
[312966049,1706554232670,-265.85689275,0.00022998,2]
[312966050,1706554232679,-155.30836834,0.00022998,2]
[312966051,1706554232689,-155.0,0.00022998,2]
[312966052,1706554232699,-235.08217382,0.00022998,2]
[312966053,1706554232709,-183.60060641,0.00022998,2]
[312966054,1706554232718,-487.24115174,0.00022998,2]
[312966055,1706554232728,-381.68883309,0.00022998,2]
[312966056,1706554232738,-366.02277432,0.00022998,2]
[312966057,1706554232748,-155.0,0.00022998,2]
[312966058,1706554232758,-497.9111912,0.00022998,2]
[312966059,1706554232768,-155.30079072,0.00022998,2]
[312966060,1706554232778,-155.78599637,0.00022998,2]
[312966061,1706554232788,-155.60727124,0.00022998,2]
[312966062,1706554232798,-218.2736471,0.00022998,2]
[312966063,1706554232807,-939.25271979,0.00022998,2]
[312966064,1706554232817,-226.33776838,0.00022998,2]
[312966065,1706554232826,-246.78899767,0.00022998,2]
[312966066,1706554232836,-199.52500903,0.00022998,2]
[312966067,1706554232845,-197.13116572,0.00022998,2]
[312966068,1706554232854,-355.01316218,0.00022998,2]
[312966069,1706554232864,-176.55976016,0.00022998,2]
[312966070,1706554232873,-162.65321079,0.00022998,2]
[312966071,1706554232882,-155.0,0.00022998,2]
[312966072,1706554232892,-306.11469835,0.00022998,2]
[312966073,1706554232901,-155.0,0.00022998,2]
[312966074,1706554232910,-245.26780635,0.00022998,2]
[312966075,1706554232922,-375.75908002,0.00022998,2]
[312966076,1706554232931,-155.0,0.00022998,2]
[312966077,1706554232940,-304.45979647,0.00022998,2]
[312966078,1706554232950,-160.88730639,0.00022998,2]
[312966079,1706554232959,-285.66659166,0.00022998,2]
[312966080,1706554232969,-532.21210601,0.00022998,2]
[312966081,1706554232978,-155.0,0.00022998,2]
[312966082,1706554232989,-172.09680919,0.00022998,2]
[312966083,1706554232999,-155.54191637,0.00022998,2]
[312966084,1706554233008,-418.21791161,0.00022998,2]
[312966085,1706554233017,-155.3355389,0.00022999,2]
[312966086,1706554233027,-186.57838311,0.00022999,2]
[312966087,1706554233037,-236.84590808,0.00022999,2]
[312966088,1706554233046,-958278.5511614,0.00023,2]
[312966089,1706554233056,-143609.24891583,0.00023,2]
[312966090,1706554233069,-5403.27765007,0.00023,2]
[312966091,1706554238092,-220.19602869,0.00022798,2]
[312966092,1706554238102,-447.57369799,0.00022999,2]
[312966093,1706554238111,-84459.45545866,0.00023,2]
[312966094,1706554238214,-2740.98763087,0.00023,2]
[312966095,1706554238226,-565.465,0.00023,2]
[312966096,1706554238272,-5865.5998655,0.00023,2]
[312966097,1706554238283,-12885.92185175,0.00023,2]
[312966098,1706554238389,-2183.19584611,0.00023,2]
[312966102,1706554243240,-220.19602869,0.00022799,2]
[312966103,1706554243251,-12687.16216131,0.00023,2]
[312966104,1706554244000,-1916.71319037,0.00022798,2]
[312966105,1706554244019,-278.25951766,0.00022798,2]
[312966106,1706554244102,-1278.84074699,0.00022798,2]
[312966107,1706554244111,-65.28019163,0.00022999,2]
[312966108,1706554244122,-90.73379298,0.00022999,2]
[312966109,1706554244132,-677.3483605,0.00022999,2]
[312966110,1706554244140,-519.45784652,0.00023,2]
[312966190,1706554246164,-41204.50099806,0.00023,2]
[312966202,1706554246299,-3367.25884584,0.00023,2]
[312966206,1706554246509,-9600.06051886,0.00023,2]
[312966207,1706554246531,-298.75906,0.00023,2]
[312966208,1706554246864,-19.09141887,0.00023,2]
[312966212,1706554250907,741.87029635,0.00022,2]
[312966214,1706554291866,536.78088272,0.0001,2]
[312966215,1706554294010,363.19299626,0.000225,2]
[312966216,1706554296279,2423.5828806,0.00011,2]
[312966217,1706554310456,798.13,0.00021007,2]
[312966218,1706554313848,9838.46959866,6.94e-05,2]
[312966219,1706554343926,150.0,0.00022244,2]
[312966220,1706554373948,544.06,0.00021996,2]
[312966222,1706554383770,11236.34997035,0.000225,2]
[312966223,1706554400387,222.33,0.00021956,2]
[312966224,1706554429893,645.5,0.00021939,2]
[312966225,1706554437565,3197.40021812,0.0002,2]
[312966227,1706554449210,200.0,0.00021932,2]
[312966230,1706554449764,6546.95468117,0.0002,2]
[312966232,1706554478341,250.0,0.00021932,2]
[312966233,1706554498672,200.0,0.00021933,2]
[312966234,1706554578733,2000.0,0.00021931,2]
[312966235,1706554594200,1462.79,0.00021931,2]
[312966236,1706554623913,288.16,0.00021931,2]
[312966237,1706554648654,155.02,0.00022097,2]
[312966238,1706554648911,155.02,0.00022481,2]
[312966239,1706554652186,184.37,0.00021931,2]
[312966240,1706554668044,200.0,0.00021931,2]
[312966241,1706554750454,176.69,0.00022,2]
[312966242,1706554765525,151.0,0.0002,2]
[312966243,1706554783598,150.0,0.00022476,2]
[312966244,1706554824580,564.75,0.0002193,2]
[312966293,1706554855616,831.45,0.00020012,2]
[312966294,1706554855866,831.45,0.00022276,2]
[312966295,1706554889773,1140.73280943,0.0002193,2]
[312966296,1706554895324,1035.27661708,0.0002193,2]
[312966297,1706554909759,467.19908809,0.0002193,2]
[312966298,1706554911316,1030.61461632,0.0002193,2]
[312966300,1706554940763,-1000.0,0.00041656,30]
[312966301,1706554940788,-1071.65722213,0.00041656,120]
[312966302,1706554940815,-1000.0,0.00041656,30]
[312966303,1706554940839,-2057.0,0.00041656,30]
[312966304,1706554940865,-1000.0,0.00041656,30]
[312966305,1706554940889,-1000.0,0.00041656,30]
[312966306,1706554940912,-1000.0,0.00041656,30]
[312966307,1706554940935,-291.23320672,0.00041656,30]
[312966308,1706554940958,-792.46018854,0.00041656,30]
[312966309,1706554940982,-1275.16272656,0.00041656,31]
[312966310,1706554941005,-677.22005322,0.00041656,30]
[312966311,1706554941032,-3720.27731924,0.00041656,30]
[312966312,1706554941055,-257.64023313,0.00041656,30]
[312966313,1706554941079,-280.37854432,0.00041656,30]
[312966314,1706554941102,-178.88637905,0.00041656,120]
[312966315,1706554941125,-273.68998704,0.00041656,30]
[312966316,1706554941147,-1401.06885484,0.00041656,30]
[312966317,1706554941173,-2200.91601841,0.00041656,30]
[312966318,1706554941199,-2393.58778188,0.00041656,30]
[312966319,1706554941222,-452.47022897,0.00041656,30]
[312966320,1706554941244,-302.38584451,0.00041656,30]
[312966321,1706554941268,-510000.0,0.00041656,30]
[312966322,1706554941294,-377.47550901,0.00041656,30]
[312966323,1706554941317,-439.71398597,0.00041656,30]
[312966324,1706554941340,-271.36795361,0.00041656,30]
[312966325,1706554941363,-1000.0,0.00041656,30]
[312966326,1706554941388,-1000.0,0.00041656,30]
[312966327,1706554941411,-81521.02141211,0.00041656,30]
[312966328,1706554941434,-169.58775303,0.00041656,120]
[312966329,1706554941457,-582.99663751,0.00041656,30]
[312966330,1706554941481,-4830.26776856,0.00041656,30]
[312966331,1706554941503,-4501.23889824,0.00041656,30]
[312966332,1706554941526,-2150.34397498,0.00041656,30]
[312966333,1706554941548,-4467.58651116,0.00041656,30]
[312966334,1706554941574,-4853.37505977,0.00041656,30]
[312966335,1706554941597,-5009.68282445,0.00041656,30]
[312966336,1706554941620,-6080.35646428,0.00041656,30]